[Event "Early-Titled-Tuesday-Blitz-July-09-2024"]
[Site "Chess.com"]
[Date "2024.07.09"]
[Round "4"]
[White "Smiechu"]
[Black "twofoxniel"]
[Result "0-1"]
[WhiteElo "2451"]
[BlackElo "2640"]
[TimeControl "180+1"]
[EndTime "8:41:15 PDT"]
[Termination "twofoxniel won by resignation"]

1. e4 {[%clk 0:03:00.9]} 1... d5 {[%clk 0:02:56.8]} 2. exd5 {[%clk 0:03:00.1]}
2... Nf6 {[%clk 0:02:57.4]} 3. Nf3 {[%clk 0:03:00.4]} 3... Nxd5 {[%clk
0:02:56.6]} 4. d4 {[%clk 0:03:00.9]} 4... Bg4 {[%clk 0:02:55.6]} 5. Be2 {[%clk
0:03:00.4]} 5... e6 {[%clk 0:02:56]} 6. c4 {[%clk 0:03:00]} 6... Nb6 {[%clk
0:02:55.9]} 7. O-O {[%clk 0:02:55.2]} 7... Be7 {[%clk 0:02:56.2]} 8. Nc3 {[%clk
0:02:53.6]} 8... O-O {[%clk 0:02:56.5]} 9. b3 {[%clk 0:02:53.5]} 9... Nc6 {[%clk
0:02:56.7]} 10. Be3 {[%clk 0:02:52.5]} 10... h6 {[%clk 0:02:54.7]} 11. h3 {[%clk
0:02:48.6]} 11... Bh5 {[%clk 0:02:54.6]} 12. Qd2 {[%clk 0:02:37.9]} 12... Bf6
{[%clk 0:02:00.3]} 13. Rad1 {[%clk 0:02:34.7]} 13... Qe7 {[%clk 0:01:57.7]} 14.
Ne4 {[%clk 0:02:23.8]} 14... Rad8 {[%clk 0:01:53.9]} 15. Nxf6+ {[%clk
0:02:12.3]} 15... Qxf6 {[%clk 0:01:54.8]} 16. a4 {[%clk 0:01:42]} 16... e5
{[%clk 0:01:51.7]} 17. d5 {[%clk 0:01:34.7]} 17... e4 {[%clk 0:01:51.7]} 18. Nd4
{[%clk 0:01:31.9]} 18... Bxe2 {[%clk 0:01:51.8]} 19. Nxe2 {[%clk 0:01:31]} 19...
Ne5 {[%clk 0:01:49.7]} 20. Ng3 {[%clk 0:01:22.7]} 20... Qg6 {[%clk 0:01:43.2]}
21. Bxb6 {[%clk 0:01:20.6]} 21... axb6 {[%clk 0:01:41.4]} 22. Qf4 {[%clk
0:01:20.5]} 22... Rfe8 {[%clk 0:01:30.1]} 23. Nxe4 {[%clk 0:01:11.7]} 23... Rd7
{[%clk 0:01:00.9]} 24. Ng3 {[%clk 0:01:10.9]} 24... Rde7 {[%clk 0:00:59.9]} 25.
Nf5 {[%clk 0:00:59.7]} 25... Rd7 {[%clk 0:00:59.6]} 26. Rfe1 {[%clk 0:00:58.5]}
26... f6 {[%clk 0:01:00]} 27. Nd4 {[%clk 0:00:46.4]} 27... Kh7 {[%clk
0:00:52.8]} 28. Qf5 {[%clk 0:00:42.8]} 28... Ree7 {[%clk 0:00:38.4]} 29. Qxg6+
{[%clk 0:00:37.9]} 29... Kxg6 {[%clk 0:00:39.3]} 30. Ne6 {[%clk 0:00:32.7]}
30... Kf7 {[%clk 0:00:39.5]} 31. Re3 {[%clk 0:00:25.5]} 31... c6 {[%clk
0:00:38.4]} 32. Nf4 {[%clk 0:00:14.4]} 32... g5 {[%clk 0:00:35.6]} 33. Nd3
{[%clk 0:00:07.2]} 33... Ng6 {[%clk 0:00:35.6]} 34. Rxe7+ {[%clk 0:00:04.8]}
34... Kxe7 {[%clk 0:00:35.8]} 35. dxc6 {[%clk 0:00:03.4]} 35... bxc6 {[%clk
0:00:36.7]} 36. Re1+ {[%clk 0:00:03.6]} 36... Kf7 {[%clk 0:00:36.7]} 37. Nb4
{[%clk 0:00:03.8]} 37... Ne5 {[%clk 0:00:36.8]} 38. Kf1 {[%clk 0:00:01.9]} 38...
Rd2 {[%clk 0:00:36]} 39. g3 {[%clk 0:00:02]} 39... Rb2 {[%clk 0:00:35.6]} 40. f4
{[%clk 0:00:02.2]} 40... Rxb3 {[%clk 0:00:31.8]} 41. fxe5 {[%clk 0:00:01.9]}
41... Rxb4 {[%clk 0:00:32]} 42. exf6 {[%clk 0:00:01.9]} 42... Rxc4 {[%clk
0:00:30.7]} 43. Re7+ {[%clk 0:00:01]} 43... Kxf6 {[%clk 0:00:31]} 44. Rb7 {[%clk
0:00:01.5]} 44... Rxa4 {[%clk 0:00:30.8]} 45. Rxb6 {[%clk 0:00:01.3]} 45... Rc4
{[%clk 0:00:31.5]} 46. Kf2 {[%clk 0:00:01.8]} 46... h5 {[%clk 0:00:30.4]} 47.
Kf3 {[%clk 0:00:02.2]} 47... Ke5 {[%clk 0:00:29.9]} 48. Rb8 {[%clk 0:00:02.1]}
48... g4+ {[%clk 0:00:30.3]} 49. hxg4 {[%clk 0:00:02.1]} 49... hxg4+ {[%clk
0:00:31.2]} 50. Kf2 {[%clk 0:00:02.6]} 50... Kd4 {[%clk 0:00:31.4]} 51. Rg8
{[%clk 0:00:02.4]} 51... Kc3 {[%clk 0:00:31.5]} 52. Ke3 {[%clk 0:00:02.8]} 52...
c5 {[%clk 0:00:31.7]} 53. Rg5 {[%clk 0:00:02.3]} 53... Kb4 {[%clk 0:00:31.3]}
54. Kd3 {[%clk 0:00:02.7]} 54... Rd4+ {[%clk 0:00:29.6]} 55. Kc2 {[%clk
0:00:02.8]} 55... c4 {[%clk 0:00:29.6]} 56. Rg6 {[%clk 0:00:02.8]} 56... Re4
{[%clk 0:00:29.4]} 57. Rg5 {[%clk 0:00:03]} 57... c3 {[%clk 0:00:27.8]} 58. Rg8
{[%clk 0:00:02.5]} 58... Re2+ {[%clk 0:00:27.6]} 59. Kd1 {[%clk 0:00:02.9]}
59... Rd2+ {[%clk 0:00:28]} 60. Kc1 {[%clk 0:00:03.2]} 60... Rd4 {[%clk
0:00:28.6]} 61. Rb8+ {[%clk 0:00:02.8]} 61... Kc4 {[%clk 0:00:29]} 62. Rf8
{[%clk 0:00:02.7]} 62... Kd3 {[%clk 0:00:28]} 63. Rg8 {[%clk 0:00:02.2]} 63...
Ra4 {[%clk 0:00:27.3]} 64. Rd8+ {[%clk 0:00:02.3]} 64... Ke3 {[%clk 0:00:27.9]}
65. Rc8 {[%clk 0:00:02.7]} 65... Ra3 {[%clk 0:00:26.4]} 66. Kc2 {[%clk
0:00:02.5]} 66... Kf3 {[%clk 0:00:26.8]} 67. Rd8 {[%clk 0:00:02.2]} 67... Kxg3
{[%clk 0:00:26.7]} 68. Rd3+ {[%clk 0:00:02.5]} 68... Kh2 {[%clk 0:00:26.7]} 69.
Rd8 {[%clk 0:00:02.6]} 69... g3 {[%clk 0:00:27.2]} 70. Rh8+ {[%clk 0:00:02.7]}
70... Kg2 {[%clk 0:00:27.6]} 71. Rg8 {[%clk 0:00:03.2]} 71... Kf2 {[%clk
0:00:28.1]} 72. Rf8+ {[%clk 0:00:03.7]} 72... Kg1 {[%clk 0:00:28.5]} 73. Rg8
{[%clk 0:00:04.3]} 73... g2 {[%clk 0:00:29.1]} 74. Rg7 {[%clk 0:00:04.6]} 74...
Ra2+ {[%clk 0:00:24.9]} 75. Kxc3 {[%clk 0:00:04.9]} 75... Kf1 {[%clk 0:00:25.4]}
76. Rf7+ {[%clk 0:00:02.7]} 76... Rf2 {[%clk 0:00:26]} 77. Rd7 {[%clk
0:00:01.5]} 77... g1=Q {[%clk 0:00:25.8]} 0-1

[Event "Early-Titled-Tuesday-Blitz-July-09-2024"]
[Site "Chess.com"]
[Date "2024.07.09"]
[Round "4"]
[White "IMVadim"]
[Black "Bykov_Egor"]
[Result "0-1"]
[WhiteElo "2440"]
[BlackElo "2684"]
[TimeControl "180+1"]
[EndTime "8:41:25 PDT"]
[Termination "Bykov_Egor won by checkmate"]

1. e4 {[%clk 0:03:00.9]} 1... e6 {[%clk 0:02:53.8]} 2. d4 {[%clk 0:02:59.9]}
2... d5 {[%clk 0:02:54.4]} 3. e5 {[%clk 0:02:50.5]} 3... c5 {[%clk 0:02:54.3]}
4. c3 {[%clk 0:02:50.5]} 4... Nc6 {[%clk 0:02:54.6]} 5. Nf3 {[%clk 0:02:50]}
5... Qb6 {[%clk 0:02:53.3]} 6. a3 {[%clk 0:02:49.5]} 6... Bd7 {[%clk 0:02:51.4]}
7. b4 {[%clk 0:02:47.1]} 7... cxd4 {[%clk 0:02:50.9]} 8. cxd4 {[%clk 0:02:48]}
8... Rc8 {[%clk 0:02:51.2]} 9. Be3 {[%clk 0:02:46]} 9... Nh6 {[%clk 0:02:50.4]}
10. Bd3 {[%clk 0:02:45.2]} 10... Ng4 {[%clk 0:02:49.7]} 11. O-O {[%clk
0:02:42.2]} 11... Be7 {[%clk 0:02:49.7]} 12. Nbd2 {[%clk 0:02:39.4]} 12... f6
{[%clk 0:02:41.7]} 13. exf6 {[%clk 0:02:36.7]} 13... Bxf6 {[%clk 0:02:42.6]} 14.
Ne5 {[%clk 0:02:24]} 14... Nxe3 {[%clk 0:01:47.7]} 15. Nxd7 {[%clk 0:02:20.9]}
15... Nxd1 {[%clk 0:01:41.6]} 16. Nxb6 {[%clk 0:02:20.1]} 16... axb6 {[%clk
0:01:39.7]} 17. Raxd1 {[%clk 0:02:19.2]} 17... Nxd4 {[%clk 0:01:37.4]} 18. Rfe1
{[%clk 0:02:14.9]} 18... Kf7 {[%clk 0:01:33]} 19. Bb1 {[%clk 0:02:04.1]} 19...
Nb5 {[%clk 0:01:28.6]} 20. Nf3 {[%clk 0:02:00]} 20... Nxa3 {[%clk 0:01:23.8]}
21. Ba2 {[%clk 0:01:58]} 21... Nb5 {[%clk 0:01:18.2]} 22. Rd3 {[%clk 0:01:49.7]}
22... Rc3 {[%clk 0:01:14.8]} 23. Rxc3 {[%clk 0:01:32]} 23... Nxc3 {[%clk
0:01:13.4]} 24. Bb3 {[%clk 0:01:29.2]} 24... Ra8 {[%clk 0:01:12.7]} 25. g4
{[%clk 0:01:27.4]} 25... h6 {[%clk 0:01:05.5]} 26. h4 {[%clk 0:01:26.3]} 26...
Ne4 {[%clk 0:01:05.9]} 27. Bc2 {[%clk 0:01:23.2]} 27... Bc3 {[%clk 0:01:00.9]}
28. Re3 {[%clk 0:01:16]} 28... Bxb4 {[%clk 0:00:54.6]} 29. Bxe4 {[%clk
0:01:14.4]} 29... dxe4 {[%clk 0:00:53.6]} 30. Rxe4 {[%clk 0:01:15.3]} 30... Bc3
{[%clk 0:00:48.6]} 31. Rc4 {[%clk 0:01:10.1]} 31... Ra3 {[%clk 0:00:42]} 32.
Rc7+ {[%clk 0:01:07.8]} 32... Kf6 {[%clk 0:00:41.8]} 33. Rxb7 {[%clk 0:01:04.9]}
33... Rb3 {[%clk 0:00:41.3]} 34. Kg2 {[%clk 0:01:01.9]} 34... b5 {[%clk
0:00:39.6]} 35. g5+ {[%clk 0:00:51.5]} 35... Kf5 {[%clk 0:00:29.1]} 36. gxh6
{[%clk 0:00:44.9]} 36... gxh6 {[%clk 0:00:30]} 37. Rf7+ {[%clk 0:00:43.1]} 37...
Kg6 {[%clk 0:00:30.1]} 38. Re7 {[%clk 0:00:37.7]} 38... Kf5 {[%clk 0:00:20.4]}
39. Rf7+ {[%clk 0:00:36.6]} 39... Kg4 {[%clk 0:00:15]} 40. Rh7 {[%clk 0:00:18]}
40... h5 {[%clk 0:00:13.9]} 41. Nh2+ {[%clk 0:00:17.6]} 41... Kxh4 {[%clk
0:00:12.5]} 42. Nf3+ {[%clk 0:00:18.3]} 42... Kg4 {[%clk 0:00:12.3]} 43. Nh2+
{[%clk 0:00:18.8]} 43... Kg5 {[%clk 0:00:11.7]} 44. Nf3+ {[%clk 0:00:19.2]}
44... Kg6 {[%clk 0:00:11.6]} 45. Re7 {[%clk 0:00:19.2]} 45... Kf6 {[%clk
0:00:10.5]} 46. Rh7 {[%clk 0:00:19.6]} 46... Rb2 {[%clk 0:00:06.9]} 47. Rxh5
{[%clk 0:00:19.1]} 47... b4 {[%clk 0:00:07.4]} 48. Rh6+ {[%clk 0:00:18.4]} 48...
Kf5 {[%clk 0:00:07.7]} 49. Rh5+ {[%clk 0:00:17.6]} 49... Kg6 {[%clk 0:00:07.3]}
50. Rb5 {[%clk 0:00:17.4]} 50... Kf6 {[%clk 0:00:06]} 51. Rb6 {[%clk 0:00:16.9]}
51... Ke7 {[%clk 0:00:06.3]} 52. Ng5 {[%clk 0:00:15.4]} 52... Rxf2+ {[%clk
0:00:06]} 53. Kxf2 {[%clk 0:00:14.3]} 53... Bd4+ {[%clk 0:00:06]} 54. Ke2 {[%clk
0:00:15.2]} 54... Bxb6 {[%clk 0:00:06.8]} 55. Kd3 {[%clk 0:00:14.7]} 55... Bc5
{[%clk 0:00:04.2]} 56. Ne4 {[%clk 0:00:14.8]} 56... Bd6 {[%clk 0:00:04.7]} 57.
Kc4 {[%clk 0:00:15]} 57... Kd7 {[%clk 0:00:04.8]} 58. Nf6+ {[%clk 0:00:14.7]}
58... Kc6 {[%clk 0:00:05.1]} 59. Ne4 {[%clk 0:00:15.6]} 59... Be7 {[%clk
0:00:05.6]} 60. Nd2 {[%clk 0:00:14.1]} 60... Kb6 {[%clk 0:00:05]} 61. Ne4 {[%clk
0:00:15]} 61... Ka5 {[%clk 0:00:04.7]} 62. Nd2 {[%clk 0:00:13.9]} 62... Ka4
{[%clk 0:00:05]} 63. Nb3 {[%clk 0:00:14.4]} 63... Ka3 {[%clk 0:00:04.9]} 64. Nd2
{[%clk 0:00:14.9]} 64... Kb2 {[%clk 0:00:05.4]} 65. Ne4 {[%clk 0:00:14.2]} 65...
Kc2 {[%clk 0:00:05.3]} 66. Nf2 {[%clk 0:00:06.9]} 66... b3 {[%clk 0:00:05.7]}
67. Nd3 {[%clk 0:00:07.6]} 67... b2 {[%clk 0:00:06.2]} 68. Nxb2 {[%clk
0:00:08.2]} 68... Kxb2 {[%clk 0:00:05.8]} 69. Kd4 {[%clk 0:00:09.1]} 69... Bd6
{[%clk 0:00:06.3]} 70. Ke4 {[%clk 0:00:09]} 70... Kc2 {[%clk 0:00:06.6]} 71. Kd4
{[%clk 0:00:09.9]} 71... Kd2 {[%clk 0:00:07]} 72. Ke4 {[%clk 0:00:10.8]} 72...
Kc3 {[%clk 0:00:07.5]} 73. Ke3 {[%clk 0:00:11.2]} 73... Kc4 {[%clk 0:00:07.5]}
74. Ke4 {[%clk 0:00:12.1]} 74... Kc5 {[%clk 0:00:08.1]} 75. Ke3 {[%clk
0:00:12.8]} 75... Kd5 {[%clk 0:00:09]} 76. Kd3 {[%clk 0:00:13.3]} 76... e5
{[%clk 0:00:09.9]} 77. Ke3 {[%clk 0:00:14.2]} 77... Bc5+ {[%clk 0:00:10.6]} 78.
Kd3 {[%clk 0:00:15.1]} 78... e4+ {[%clk 0:00:11.1]} 79. Ke2 {[%clk 0:00:16]}
79... Kd4 {[%clk 0:00:11.5]} 80. Kd2 {[%clk 0:00:16.9]} 80... Bb4+ {[%clk
0:00:12.3]} 81. Ke2 {[%clk 0:00:17.8]} 81... e3 {[%clk 0:00:12.7]} 82. Kd1
{[%clk 0:00:18.7]} 82... Kd3 {[%clk 0:00:13.6]} 83. Kc1 {[%clk 0:00:17.9]} 83...
Bc3 {[%clk 0:00:13.7]} 84. Kb1 {[%clk 0:00:16.6]} 84... e2 {[%clk 0:00:14.1]}
85. Ka2 {[%clk 0:00:17.2]} 85... e1=Q {[%clk 0:00:13.5]} 86. Kb3 {[%clk
0:00:18.1]} 86... Qb1+ {[%clk 0:00:13.9]} 87. Ka4 {[%clk 0:00:17.9]} 87... Qb4#
{[%clk 0:00:13.9]} 0-1

[Event "Early-Titled-Tuesday-Blitz-July-09-2024"]
[Site "Chess.com"]
[Date "2024.07.09"]
[Round "4"]
[White "Ganziitoo"]
[Black "Bulatova_Kamaliya"]
[Result "1-0"]
[WhiteElo "2143"]
[BlackElo "2309"]
[TimeControl "180+1"]
[EndTime "8:41:28 PDT"]
[Termination "Ganziitoo won by resignation"]

1. e4 {[%clk 0:02:56.4]} 1... Nf6 {[%clk 0:02:59.1]} 2. e5 {[%clk 0:02:56.1]}
2... Nd5 {[%clk 0:02:59.2]} 3. Nc3 {[%clk 0:02:57]} 3... Nxc3 {[%clk 0:02:58.6]}
4. dxc3 {[%clk 0:02:57.9]} 4... d6 {[%clk 0:02:58.5]} 5. Nf3 {[%clk 0:02:57.3]}
5... g6 {[%clk 0:02:57.6]} 6. Bc4 {[%clk 0:02:55.5]} 6... Bg7 {[%clk 0:02:57.2]}
7. Bf4 {[%clk 0:02:55.3]} 7... O-O {[%clk 0:02:56.8]} 8. O-O {[%clk 0:02:55.5]}
8... Bg4 {[%clk 0:02:54.8]} 9. exd6 {[%clk 0:02:51.7]} 9... cxd6 {[%clk
0:02:53.9]} 10. h3 {[%clk 0:02:49.1]} 10... Bd7 {[%clk 0:02:47.5]} 11. Bg3
{[%clk 0:02:42.1]} 11... Nc6 {[%clk 0:02:47.4]} 12. Re1 {[%clk 0:02:41.6]} 12...
Qb6 {[%clk 0:02:45.6]} 13. Bb3 {[%clk 0:02:41.2]} 13... Rfe8 {[%clk 0:02:43.3]}
14. Ng5 {[%clk 0:02:37]} 14... Rf8 {[%clk 0:02:10.3]} 15. Qf3 {[%clk 0:02:32]}
15... Bf6 {[%clk 0:01:56.2]} 16. Ne4 {[%clk 0:02:30.7]} 16... Be5 {[%clk
0:01:56.2]} 17. Rad1 {[%clk 0:02:14.6]} 17... Bf5 {[%clk 0:01:44.3]} 18. Bxe5
{[%clk 0:02:05.4]} 18... Nxe5 {[%clk 0:01:43.3]} 19. Qg3 {[%clk 0:01:47.8]}
19... a5 {[%clk 0:01:34.3]} 20. a4 {[%clk 0:01:15.1]} 20... Kh8 {[%clk
0:01:16.3]} 21. Qh4 {[%clk 0:01:03.5]} 21... Bxe4 {[%clk 0:01:07.8]} 22. Rxe4
{[%clk 0:01:02.2]} 22... f5 {[%clk 0:01:08.7]} 23. Ree1 {[%clk 0:00:53.5]} 23...
Rf6 {[%clk 0:01:03]} 24. Kh1 {[%clk 0:00:50.8]} 24... f4 {[%clk 0:01:01.7]} 25.
f3 {[%clk 0:00:41.3]} 25... Raf8 {[%clk 0:00:56.4]} 26. Re4 {[%clk 0:00:39.4]}
26... Nc6 {[%clk 0:00:38.8]} 27. Qe1 {[%clk 0:00:25.1]} 27... e5 {[%clk
0:00:38.2]} 28. Qg1 {[%clk 0:00:16.3]} 28... Qc7 {[%clk 0:00:35.3]} 29. Rd5
{[%clk 0:00:16.1]} 29... Ne7 {[%clk 0:00:34.9]} 30. Rb5 {[%clk 0:00:16.2]} 30...
Nf5 {[%clk 0:00:34.1]} 31. Kh2 {[%clk 0:00:14.8]} 31... Ne3 {[%clk 0:00:28.9]}
32. Rxe3 {[%clk 0:00:12.5]} 32... fxe3 {[%clk 0:00:29.8]} 33. Qxe3 {[%clk
0:00:13.4]} 33... d5 {[%clk 0:00:26.1]} 34. Bxd5 {[%clk 0:00:13.6]} 34... e4+
{[%clk 0:00:26.4]} 35. Kh1 {[%clk 0:00:08]} 35... exf3 {[%clk 0:00:27.3]} 36.
Bxf3 {[%clk 0:00:08.6]} 36... Qg3 {[%clk 0:00:19]} 37. Qd4 {[%clk 0:00:02.6]}
37... Qe1+ {[%clk 0:00:17.7]} 38. Kh2 {[%clk 0:00:02.8]} 38... Kg8 {[%clk
0:00:09.9]} 39. Bd5+ {[%clk 0:00:03.2]} 39... Kg7 {[%clk 0:00:09.8]} 40. Rxb7+
{[%clk 0:00:03.6]} 40... Kh6 {[%clk 0:00:09.9]} 41. Rc7 {[%clk 0:00:01.6]} 41...
Rf1 {[%clk 0:00:06.6]} 42. Qg7+ {[%clk 0:00:01.8]} 42... Kg5 {[%clk 0:00:06.8]}
43. Qe7+ {[%clk 0:00:01.2]} 43... Qxe7 {[%clk 0:00:05.9]} 44. Rxe7 {[%clk
0:00:02.1]} 44... R1f2 {[%clk 0:00:05.3]} 45. Bf3 {[%clk 0:00:02.3]} 45... Rxc2
{[%clk 0:00:05.1]} 46. Kg3 {[%clk 0:00:02.5]} 46... Rxb2 {[%clk 0:00:05]} 47.
Re5+ {[%clk 0:00:03.2]} 47... Kf6 {[%clk 0:00:04.3]} 48. Rxa5 {[%clk 0:00:03.3]}
48... Rb3 {[%clk 0:00:04.7]} 49. Ra6+ {[%clk 0:00:03.7]} 49... Kg7 {[%clk
0:00:04.2]} 50. c4 {[%clk 0:00:04.3]} 50... Kh6 {[%clk 0:00:04.2]} 51. Kg4
{[%clk 0:00:04.2]} 51... Rc8 {[%clk 0:00:03.1]} 52. Bd5 {[%clk 0:00:04.4]} 52...
Rb4 {[%clk 0:00:03.2]} 53. Kg3 {[%clk 0:00:04.2]} 53... Rf8 {[%clk 0:00:03.2]}
54. h4 {[%clk 0:00:03.9]} 54... Rb3+ {[%clk 0:00:03.6]} 55. Kg4 {[%clk
0:00:04.1]} 55... Re8 {[%clk 0:00:03.4]} 56. a5 {[%clk 0:00:04.5]} 56... Reb8
{[%clk 0:00:03.1]} 57. Rb6 {[%clk 0:00:04.6]} 57... R8xb6 {[%clk 0:00:03]} 58.
axb6 {[%clk 0:00:05.5]} 58... Rxb6 {[%clk 0:00:03.5]} 59. Kf4 {[%clk 0:00:06.1]}
59... Rb4 {[%clk 0:00:03.8]} 60. g4 {[%clk 0:00:06.4]} 60... Kg7 {[%clk
0:00:04.4]} 61. Ke5 {[%clk 0:00:06.8]} 61... Kf8 {[%clk 0:00:04.5]} 62. Kd6
{[%clk 0:00:07.2]} 62... Ke8 {[%clk 0:00:04]} 63. c5 {[%clk 0:00:07.2]} 63...
Kd8 {[%clk 0:00:03.6]} 64. Be6 {[%clk 0:00:07.1]} 64... Rb2 {[%clk 0:00:02.7]}
65. c6 {[%clk 0:00:07.3]} 65... Rd2+ {[%clk 0:00:03.6]} 66. Ke5 {[%clk
0:00:07.8]} 66... Kc7 {[%clk 0:00:04]} 67. Bd7 {[%clk 0:00:07.5]} 67... Re2+
{[%clk 0:00:04.1]} 68. Kf6 {[%clk 0:00:07.8]} 68... Rf2+ {[%clk 0:00:04.6]} 69.
Kg7 {[%clk 0:00:08]} 69... h5 {[%clk 0:00:05.1]} 70. g5 {[%clk 0:00:07.1]} 70...
Rf4 {[%clk 0:00:04.7]} 71. Kxg6 {[%clk 0:00:07.4]} 71... Rxh4 {[%clk 0:00:05.3]}
72. Kh6 {[%clk 0:00:07.3]} 72... Rg4 {[%clk 0:00:05.5]} 73. Bxg4 {[%clk
0:00:06.3]} 73... hxg4 {[%clk 0:00:06.4]} 74. g6 {[%clk 0:00:07.2]} 74... g3
{[%clk 0:00:06.9]} 75. g7 {[%clk 0:00:08.1]} 75... g2 {[%clk 0:00:07.7]} 76.
g8=Q {[%clk 0:00:08.9]} 76... g1=Q {[%clk 0:00:08.1]} 77. Qxg1 {[%clk
0:00:09.4]} 77... Kxc6 {[%clk 0:00:09]} 78. Qd4 {[%clk 0:00:09.9]} 1-0

[Event "Early-Titled-Tuesday-Blitz-July-09-2024"]
[Site "Chess.com"]
[Date "2024.07.09"]
[Round "4"]
[White "HelenaWalker2912"]
[Black "KVAIDAN"]
[Result "1/2-1/2"]
[WhiteElo "2507"]
[BlackElo "2327"]
[TimeControl "180+1"]
[EndTime "8:41:31 PDT"]
[Termination "Game drawn by repetition"]

1. d4 {[%clk 0:03:00.9]} 1... e6 {[%clk 0:02:56.6]} 2. c4 {[%clk 0:03:00.9]}
2... f5 {[%clk 0:02:57]} 3. Nf3 {[%clk 0:03:00.3]} 3... Nf6 {[%clk 0:02:57.4]}
4. Nc3 {[%clk 0:03:00.1]} 4... Be7 {[%clk 0:02:55.3]} 5. g3 {[%clk 0:02:59.5]}
5... O-O {[%clk 0:02:55.7]} 6. Bg2 {[%clk 0:03:00.1]} 6... d6 {[%clk 0:02:56.2]}
7. O-O {[%clk 0:03:00.6]} 7... a5 {[%clk 0:02:56.8]} 8. b3 {[%clk 0:02:57.1]}
8... Ne4 {[%clk 0:02:56.3]} 9. Bb2 {[%clk 0:02:56.6]} 9... Nxc3 {[%clk
0:02:56.8]} 10. Bxc3 {[%clk 0:02:57.5]} 10... Qe8 {[%clk 0:02:56.7]} 11. Qc2
{[%clk 0:02:53.7]} 11... Qg6 {[%clk 0:02:55.6]} 12. Rfe1 {[%clk 0:02:50.5]}
12... c6 {[%clk 0:02:51.5]} 13. e4 {[%clk 0:02:49]} 13... f4 {[%clk 0:02:51.8]}
14. Rac1 {[%clk 0:02:30.5]} 14... Qh5 {[%clk 0:02:49.9]} 15. e5 {[%clk
0:02:23.9]} 15... d5 {[%clk 0:02:47.8]} 16. Qe2 {[%clk 0:02:03.2]} 16... a4
{[%clk 0:02:37.8]} 17. b4 {[%clk 0:01:54.6]} 17... a3 {[%clk 0:02:34.7]} 18. Nd2
{[%clk 0:01:47]} 18... Qh6 {[%clk 0:02:28.1]} 19. b5 {[%clk 0:01:40.3]} 19...
Nd7 {[%clk 0:02:14.6]} 20. bxc6 {[%clk 0:01:40]} 20... bxc6 {[%clk 0:02:14.8]}
21. cxd5 {[%clk 0:01:40]} 21... cxd5 {[%clk 0:02:14.5]} 22. Nb3 {[%clk
0:01:34.9]} 22... Ba6 {[%clk 0:02:06.6]} 23. Qd2 {[%clk 0:01:34.9]} 23... Bg5
{[%clk 0:02:02.8]} 24. h4 {[%clk 0:01:25.6]} 24... Be7 {[%clk 0:01:50.1]} 25.
Bb4 {[%clk 0:01:19.3]} 25... fxg3 {[%clk 0:01:41.9]} 26. fxg3 {[%clk 0:01:18]}
26... Qxd2 {[%clk 0:01:33.5]} 27. Bxd2 {[%clk 0:01:17.5]} 27... Bc4 {[%clk
0:01:34]} 28. Rb1 {[%clk 0:00:43.5]} 28... Rab8 {[%clk 0:01:29]} 29. Re3 {[%clk
0:00:42.4]} 29... g5 {[%clk 0:01:27]} 30. Bh3 {[%clk 0:00:40.1]} 30... Kf7
{[%clk 0:01:12]} 31. hxg5 {[%clk 0:00:36.7]} 31... Bxg5 {[%clk 0:00:53.6]} 32.
Rf3+ {[%clk 0:00:36.8]} 32... Kg6 {[%clk 0:00:53.1]} 33. Rxf8 {[%clk 0:00:37.4]}
33... Rxf8 {[%clk 0:00:50.4]} 34. Bxg5 {[%clk 0:00:37.3]} 34... Kxg5 {[%clk
0:00:50.6]} 35. Bxe6 {[%clk 0:00:37.9]} 35... Nb6 {[%clk 0:00:49.8]} 36. Kg2
{[%clk 0:00:34.9]} 36... Bd3 {[%clk 0:00:45.4]} 37. Rd1 {[%clk 0:00:33]} 37...
Be4+ {[%clk 0:00:45.6]} 38. Kg1 {[%clk 0:00:31.3]} 38... Rf3 {[%clk 0:00:45.9]}
39. Nc5 {[%clk 0:00:28.4]} 39... Rxg3+ {[%clk 0:00:45.3]} 40. Kf2 {[%clk
0:00:28.4]} 40... Rg2+ {[%clk 0:00:43.5]} 41. Kf1 {[%clk 0:00:29.1]} 41... Bf3
{[%clk 0:00:37.7]} 42. Rd3 {[%clk 0:00:29.5]} 42... Rxa2 {[%clk 0:00:30.2]} 43.
Rxf3 {[%clk 0:00:28.9]} 43... Ra1+ {[%clk 0:00:26.9]} 44. Kg2 {[%clk 0:00:29.4]}
44... a2 {[%clk 0:00:26.7]} 45. Ra3 {[%clk 0:00:28.1]} 45... Nc4 {[%clk
0:00:26.1]} 46. Ra8 {[%clk 0:00:28.8]} 46... Ne3+ {[%clk 0:00:25]} 47. Kh2
{[%clk 0:00:25.9]} 47... Nf1+ {[%clk 0:00:20.8]} 48. Kh3 {[%clk 0:00:25.9]}
48... Ne3 {[%clk 0:00:19.2]} 49. Nb3 {[%clk 0:00:25.8]} 49... Rb1 {[%clk
0:00:17.9]} 50. Rxa2 {[%clk 0:00:23.4]} 50... Rxb3 {[%clk 0:00:18.2]} 51. Kh2
{[%clk 0:00:21.3]} 51... Kf4 {[%clk 0:00:16.5]} 52. Bf7 {[%clk 0:00:20.5]} 52...
Ke4 {[%clk 0:00:16]} 53. e6 {[%clk 0:00:20.5]} 53... Rb7 {[%clk 0:00:14.6]} 54.
Ra4 {[%clk 0:00:18.1]} 54... Nf5 {[%clk 0:00:14.1]} 55. Kh3 {[%clk 0:00:17.7]}
55... Nxd4 {[%clk 0:00:14.3]} 56. Kh4 {[%clk 0:00:17.1]} 56... Ke5 {[%clk
0:00:14.4]} 57. Kg5 {[%clk 0:00:17.3]} 57... Nxe6+ {[%clk 0:00:14.9]} 58. Bxe6
{[%clk 0:00:17.3]} 58... Kxe6 {[%clk 0:00:15.2]} 59. Rd4 {[%clk 0:00:18.1]}
59... Ke5 {[%clk 0:00:15.5]} 60. Rd1 {[%clk 0:00:18.7]} 60... Rg7+ {[%clk
0:00:15.7]} 61. Kh6 {[%clk 0:00:18.9]} 61... Rg4 {[%clk 0:00:16.2]} 62. Kh5
{[%clk 0:00:19.6]} 62... d4 {[%clk 0:00:16.8]} 63. Kxg4 {[%clk 0:00:19.8]} 63...
Ke4 {[%clk 0:00:17.1]} 64. Kg3 {[%clk 0:00:20.4]} 64... Ke3 {[%clk 0:00:17.5]}
65. Kg2 {[%clk 0:00:20.8]} 65... d3 {[%clk 0:00:14.8]} 66. Kf1 {[%clk
0:00:21.1]} 66... h5 {[%clk 0:00:11.4]} 67. Ke1 {[%clk 0:00:21.5]} 67... h4
{[%clk 0:00:11.7]} 68. Rd2 {[%clk 0:00:22.2]} 68... Kf3 {[%clk 0:00:10.1]} 69.
Rxd3+ {[%clk 0:00:21.8]} 69... Kg2 {[%clk 0:00:10.7]} 70. Rd2+ {[%clk
0:00:20.4]} 70... Kg1 {[%clk 0:00:10]} 71. Ke2 {[%clk 0:00:20]} 71... h3 {[%clk
0:00:10.6]} 72. Rd1+ {[%clk 0:00:20.5]} 72... Kg2 {[%clk 0:00:08.8]} 73. Rd8
{[%clk 0:00:15.8]} 73... h2 {[%clk 0:00:09]} 74. Rg8+ {[%clk 0:00:16.1]} 74...
Kh1 {[%clk 0:00:06.4]} 75. Rh8 {[%clk 0:00:09.1]} 75... Kg2 {[%clk 0:00:06.6]}
76. Rg8+ {[%clk 0:00:05.4]} 76... Kh1 {[%clk 0:00:06.6]} 77. Ra8 {[%clk
0:00:03.4]} 77... Kg2 {[%clk 0:00:06.3]} 78. Rg8+ {[%clk 0:00:03]} 1/2-1/2